bitfinex/quotes_ETHUSD_20241204
["timestamp","ask_amount","ask_price","bid_price","bid_amount"]
[1733271834487,0.3155,3625.9,3624.9,2.75868]
[1733271835367,0.3155,3625.9,3624.7,0.535808]
[1733271835368,0.3155,3625.9,3625.0,2.75857]
[1733271835887,0.3155,3625.9,3625.1,0.02758392]
[1733271836092,0.3155,3625.9,3625.3,2.75836]
[1733271836863,0.3155,3625.9,3624.8,2.66723036]
[1733271837108,0.3155,3626.7,3625.8,2.75801]
[1733271837876,0.3155,3626.7,3625.9,2.75791]
[1733271838269,0.3155,3626.7,3626.0,2.75785]
[1733271838512,0.69559502,3626.7,3626.0,2.75785]
[1733271838709,0.3155,3626.7,3626.0,2.75785]
[1733271839513,0.3155,3626.7,3626.0,2.75781]
[1733271839884,0.3155,3626.7,3625.3,0.8141]
[1733271840084,0.3155,3626.7,3625.8,2.75797]
[1733271840285,0.3155,3626.7,3625.9,2.75791]
[1733271840488,0.62276,3626.7,3625.3,0.8141]
[1733271840706,0.3155,3626.7,3625.8,2.758]
[1733271840920,0.3155,3626.7,3625.9,2.75792]
[1733271841215,0.3155,3626.7,3626.5,2.75745]
[1733271841423,0.3155,3626.7,3626.1,2.75778]
[1733271841626,0.3155,3626.7,3626.0,0.7974]
[1733271841961,0.3155,3626.7,3626.3,2.75758]
[1733271842103,0.3155,3626.7,3625.9,2.75793]
[1733271842104,0.3155,3626.7,3625.9,0.02757383]
[1733271842307,0.3155,3626.7,3626.2,2.7577]
[1733271842826,0.3155,3626.7,3625.9,0.34972042]
[1733271843124,0.3155,3626.7,3626.1,2.75778]
[1733271843822,0.3155,3626.7,3626.2,0.02757573]
[1733271843989,4.14447862,3628.0,3625.7,0.8024]
[1733271843990,0.3155,3627.1,3626.0,2.66723036]
[1733271844172,0.3155,3627.5,3627.4,2.75679]
[1733271844779,0.57187717,3628.4,3627.6,2.75657]
[1733271845012,0.3155,3628.4,3627.7,2.75655]
[1733271845196,0.3155,3628.4,3627.5,2.7567]
[1733271845413,0.3155,3628.4,3627.7,2.75656]
[1733271845823,0.3155,3628.4,3627.2,2.78450606]
[1733271845824,0.3155,3628.4,3627.8,2.75649]
[1733271846131,0.3155,3628.4,3627.6,2.75662]
[1733271846305,0.3155,3628.4,3627.3,2.75679]
[1733271846507,2.7561,3628.4,3627.1,2.75702]
[1733271846732,0.3155,3628.2,3627.1,2.75702]
[1733271846901,0.3155,3628.1,3627.1,2.75702]
[1733271847099,0.3155,3628.0,3626.5,0.8203]
[1733271847433,0.3155,3628.0,3627.4,2.75672]
[1733271847745,0.3155,3628.0,3627.2,2.66723036]
[1733271847903,0.3155,3628.0,3627.8,2.75647]
[1733271848315,0.3155,3628.0,3627.2,3.48083036]
[1733271848650,0.3155,3628.0,3627.9,2.75641]
[1733271848850,0.3155,3628.3,3627.7,2.75655]
[1733271849500,0.3155,3628.3,3627.4,2.75679]
[1733271849698,0.3155,3628.3,3627.2,3.48083036]
[1733271849699,0.3155,3628.3,3628.2,2.75618]
[1733271849919,0.3155,3628.3,3627.3,0.34808304]
[1733271850240,0.3155,3629.0,3627.3,0.34808304]
[1733271850441,0.3155,3629.0,3628.1,2.7562]
[1733271850442,0.25669202,3628.9,3628.1,2.7562]
[1733271850999,0.25669202,3628.9,3627.6,2.66723036]
[1733271851312,0.25669202,3629.5,3628.7,2.75573]
[1733271851550,0.57219202,3629.4,3628.7,2.75573]
[1733271851765,0.3155,3629.4,3628.7,2.75573]
[1733271852646,0.3155,3629.4,3628.4,2.75603]
[1733271852938,0.3155,3629.4,3628.7,2.75573]
[1733271853098,0.3155,3629.4,3628.0,3.45723036]
[1733271853310,0.3155,3629.4,3628.5,2.75594]
[1733271854054,0.3155,3629.4,3628.3,2.7561]
[1733271854363,0.57219202,3629.4,3628.3,2.7561]
[1733271854525,0.3155,3629.3,3627.6,0.7762]
[1733271854726,0.3155,3629.3,3627.3,0.7762]
[1733271854727,0.3155,3629.0,3627.3,0.7762]
[1733271854969,0.3155,3628.9,3627.4,2.75674]
[1733271855125,0.3155,3628.7,3627.0,0.7762]
[1733271855311,0.3155,3628.7,3627.4,2.75674]
[1733271855518,0.3155,3628.6,3627.1,2.75699]
[1733271855841,0.3155,3628.4,3626.3,0.8041]
[1733271856012,0.3155,3628.0,3626.8,2.75722]
[1733271856208,0.3155,3627.8,3626.5,2.75746]
[1733271856434,0.3155,3627.8,3626.3,0.8041]
[1733271856435,0.3155,3627.7,3626.3,0.8041]
[1733271856718,0.307202,3627.6,3626.6,2.75738]
[1733271857139,0.307202,3627.6,3626.3,1.5029789]
[1733271857343,0.2564168,3627.7,3626.3,1.5029789]
[1733271857658,0.2735111,3628.3,3626.5,2.75747]
[1733271857659,0.3155,3627.6,3626.5,2.75747]
[1733271857811,0.3155,3627.6,3627.0,2.75702]
[1733271858013,0.3155,3627.6,3626.3,1.5029789]
[1733271858235,0.3155,3627.6,3627.4,2.75678]
[1733271858454,0.3155,3627.6,3626.9,2.75713]
[1733271858951,0.3155,3627.6,3627.2,2.75694]
[1733271859153,0.3155,3627.6,3626.9,2.78469655]
[1733271859324,0.3155,3627.6,3627.4,2.75677]
[1733271859521,0.3155,3627.6,3626.9,2.75713]
[1733271859717,0.3155,3627.6,3626.9,0.35010482]
[1733271859916,0.3155,3627.6,3627.0,2.75709]
[1733271860257,0.3155,3628.4,3627.5,2.75665]
[1733271860460,1.14769763,3629.0,3627.3,0.7726]
[1733271860461,0.3155,3629.0,3627.3,0.80016188]
[1733271860768,0.3155,3629.0,3627.9,2.7564]
[1733271860934,0.57187651,3629.0,3627.9,2.7564]
[1733271861118,0.57187651,3629.0,3627.4,3.42760159]
[1733271861319,0.3155,3629.0,3627.4,0.67083159]
[1733271861552,0.3155,3629.0,3628.0,2.75629]
[1733271861868,0.3155,3629.0,3628.0,2.75627]
[1733271862021,0.307093,3628.9,3628.0,2.75628]
[1733271862222,0.307093,3628.9,3628.1,2.75626]
[1733271862449,0.307093,3628.9,3627.4,0.67083159]
[1733271862649,0.3155,3629.0,3628.3,2.7561]
[1733271862863,0.3155,3629.0,3628.0,2.7563]
[1733271863158,0.3155,3629.0,3628.0,2.75632]
[1733271863366,0.3155,3629.0,3627.5,2.75671]
[1733271863367,0.3155,3629.0,3627.4,0.67083159]
[1733271863536,0.3155,3629.0,3628.2,2.75618]
[1733271864125,0.3155,3629.0,3628.2,2.75613]
[1733271864532,0.3155,3629.0,3627.8,2.75649]
[1733271864733,0.3155,3629.0,3627.6,2.75664]
[1733271864944,0.3155,3629.0,3628.3,2.75609]
[1733271865219,0.3155,3629.0,3628.1,2.75626]
[1733271865444,0.3155,3629.0,3628.5,2.75592]
[1733271866468,0.3155,3629.0,3628.6,2.75583]
[1733271867325,0.3155,3629.0,3628.4,2.75601]
[1733271867521,0.3155,3629.0,3627.6,1.22262396]
[1733271867746,0.3155,3629.0,3627.6,0.7539]
[1733271867935,0.25668373,3629.0,3627.6,2.75663]
[1733271868135,2.75582,3628.7,3627.3,0.7539]
[1733271868346,3.01261373,3628.6,3627.4,2.75679]
[1733271868530,0.57218373,3628.5,3627.4,2.75679]
[1733271868953,0.57218373,3628.5,3627.6,2.75661]
[1733271869165,0.25668373,3628.7,3627.6,3.15116401]
[1733271869364,0.3155,3628.8,3627.8,2.75649]
[1733271869665,0.3155,3628.8,3628.2,2.75612]
[1733271869968,0.3155,3628.8,3628.2,2.75614]
[1733271870579,0.3155,3628.8,3628.1,2.75625]
[1733271870735,0.3155,3628.8,3628.6,2.75587]
[1733271870939,0.3155,3629.3,3628.6,2.75587]
[1733271871232,0.3155,3629.3,3628.7,2.75579]
[1733271871233,0.2569401,3629.2,3628.7,2.75579]
[1733271871459,0.3155,3629.3,3628.7,2.75579]
[1733271872098,0.2569401,3629.7,3629.6,2.75512]
[1733271872264,0.58957527,3630.0,3629.6,2.75512]
[1733271872265,0.2569885,3629.9,3629.6,2.7551]
[1733271872465,0.3155,3630.0,3629.4,2.75527]
[1733271873003,0.3155,3630.0,3629.0,2.75557]
[1733271873297,0.2569885,3629.9,3628.5,2.75595]
[1733271873462,0.2569885,3629.8,3628.4,6.67612401]
[1733271873663,0.5724885,3629.7,3629.0,2.75557]
[1733271873900,0.2569885,3629.6,3629.1,2.75548]
[1733271874050,0.3155,3629.7,3629.1,2.75548]
[1733271874554,0.3155,3629.7,3628.9,2.75565]
[1733271874555,0.2569885,3629.6,3628.9,2.75565]
[1733271874754,0.3155,3629.7,3628.6,2.75583]
[1733271874755,0.2569885,3629.5,3629.0,2.7555]
[1733271874986,0.2569885,3629.6,3628.6,0.6675994]
[1733271875188,0.3155,3629.7,3628.6,0.6675994]
[1733271875508,0.3155,3629.7,3629.1,2.75548]
[1733271875653,0.3155,3629.7,3628.7,0.02755254]
[1733271875654,0.25708356,3629.6,3628.8,2.75565]
[1733271876197,0.25708356,3629.6,3629.0,2.75557]
[1733271876666,0.25708356,3629.6,3628.8,2.75572]
[1733271877058,0.3155,3629.7,3628.8,2.75572]
[1733271877059,0.25708356,3629.5,3629.3,2.75533]
[1733271877299,0.25708356,3629.6,3629.3,2.75533]
[1733271877466,0.25708356,3629.9,3629.4,0.02755098]
[1733271877682,0.25708356,3630.0,3629.7,2.75504]
[1733271877874,0.25708356,3629.9,3629.8,2.75496]
[1733271878079,0.25708356,3630.0,3629.4,0.02755098]
[1733271878300,0.25708356,3630.0,3629.6,2.75508]
[1733271878499,0.25708356,3630.3,3629.8,2.7549]
[1733271878706,0.58957527,3630.4,3629.9,0.02754683]
[1733271878707,0.25708356,3630.2,3629.9,0.02754683]
[1733271879021,0.25708356,3630.2,3629.4,0.35074584]
[1733271879022,0.25708356,3630.5,3630.1,2.75467]
[1733271879174,0.58957527,3630.8,3630.1,2.75467]
[1733271879175,0.25708356,3630.7,3630.1,2.75467]
[1733271879374,0.25708356,3630.6,3630.1,2.75467]
[1733271879571,0.25708356,3630.7,3630.1,2.75467]
[1733271879782,0.25708356,3630.6,3630.1,2.75467]
[1733271880018,0.25708356,3630.7,3630.2,2.75462]
[1733271880186,0.25708356,3630.7,3629.7,0.7641]
[1733271880391,0.3155,3630.8,3629.8,2.75497]
[1733271880600,0.3155,3630.8,3630.3,2.75459]
[1733271881203,0.3155,3630.8,3630.2,2.75466]
[1733271881516,0.3155,3630.8,3629.9,0.351907]
[1733271881517,0.57258356,3631.1,3630.4,2.75449]
[1733271881723,0.25654255,3631.0,3630.4,2.75449]
[1733271881874,0.3155,3631.1,3630.6,2.75434]
[1733271882079,2.75346,3631.8,3630.4,0.275449]
[1733271882080,0.27364446,3631.4,3630.7,0.02754039]
[1733271882314,0.25654168,3631.7,3630.7,0.02754039]
[1733271882315,0.27364446,3631.9,3630.7,0.02754039]
[1733271882498,0.25654168,3631.8,3630.6,2.75435]
[1733271882809,0.53018614,3631.9,3630.5,0.8179]
[1733271883012,0.58489329,3631.8,3630.7,2.75427]
[1733271883198,0.58489329,3631.8,3630.8,2.75421]
[1733271883439,0.25654168,3631.9,3630.9,2.75413]
[1733271883738,0.25654168,3632.1,3631.0,0.02753562]
[1733271883938,0.25654168,3632.1,3630.8,0.02753562]
[1733271884111,0.25654168,3632.0,3631.1,2.75397]
[1733271884311,1.15255114,3632.2,3631.2,0.0275354]
[1733271884509,0.58914446,3632.2,3631.1,2.75397]
[1733271884696,0.58914446,3632.2,3631.2,2.7539]
[1733271884898,0.84506076,3632.2,3631.2,2.7539]
[1733271885137,0.3155,3632.2,3631.2,2.7539]
[1733271885441,0.3155,3632.2,3631.2,3.02929]
[1733271886315,0.3155,3632.2,3631.2,0.27539]
[1733271886514,0.58914446,3632.2,3631.2,0.27539]
[1733271886701,0.3155,3632.2,3631.3,2.75379]
[1733271886900,0.3155,3632.2,3630.8,3.54941]
[1733271886901,0.3155,3632.2,3630.9,0.02753283]
[1733271887116,0.2559163,3632.6,3632.0,2.7533]
[1733271887320,0.3155,3632.9,3632.3,2.75307]
[1733271887653,0.3155,3632.9,3632.4,2.75299]
[1733271887813,0.3155,3632.9,3632.3,0.02752508]
[1733271888014,0.3155,3633.4,3632.1,0.626867]
[1733271888262,0.3155,3633.4,3632.3,2.753]
[1733271888457,0.3155,3633.4,3632.4,2.75299]
[1733271889349,0.3155,3633.4,3632.3,2.75307]
[1733271889761,0.3155,3633.4,3632.2,0.4169622]
[1733271890065,0.3155,3633.4,3632.6,2.75284]
[1733271890267,0.3155,3633.4,3632.6,0.275284]
[1733271891881,0.27199785,3633.7,3632.6,0.275284]
[1733271892183,0.27199785,3634.0,3633.0,3.14819993]
[1733271892390,0.27199785,3634.2,3633.5,2.75214]
[1733271892588,0.3155,3634.3,3633.6,2.77958426]
[1733271892881,0.27199785,3634.5,3633.3,2.75224]
[1733271893085,0.3155,3634.7,3633.3,2.75224]
[1733271893383,0.3155,3634.7,3633.7,2.752]
[1733271893744,0.3155,3634.7,3633.3,2.75224]
[1733271893948,0.3155,3634.7,3633.6,2.75207]
[1733271894240,0.3155,3634.7,3633.2,0.65973459]
[1733271894700,0.3155,3634.7,3633.4,2.75216]
[1733271894863,3.06676,3634.7,3633.2,0.65973459]
[1733271895077,0.3155,3634.4,3633.1,3.56975]
[1733271895444,2.75156,3634.3,3633.1,0.8173]
[1733271895783,0.3155,3634.7,3632.8,2.75263]
[1733271895982,0.3155,3634.2,3632.8,2.75263]
[1733271896187,2.75172,3634.1,3632.7,5.75275]
[1733271896494,2.75172,3634.1,3632.6,0.8089]
[1733271896495,2.75172,3634.1,3632.8,3.408845]
[1733271896782,3.06733,3634.0,3632.6,0.8089]
[1733271896986,0.3155,3634.0,3632.6,0.8089]
[1733271897189,0.3155,3634.2,3632.3,0.8232]
[1733271897346,0.3155,3633.7,3632.4,0.02752366]
[1733271897765,0.3155,3633.7,3632.6,2.75283]
[1733271897968,0.3155,3633.7,3632.7,2.75276]
[1733271898246,0.3155,3633.7,3632.3,0.8232]
[1733271898591,0.3155,3634.1,3632.3,0.8232]
[1733271898747,2.75211,3633.6,3632.3,0.8232]
[1733271898952,0.3155,3633.5,3632.3,0.8232]
[1733271899467,0.3155,3633.5,3631.9,0.7908]
[1733271899655,2.75236,3633.3,3631.9,0.7908]
[1733271900449,2.75236,3633.3,3632.0,2.75329]
[1733271900643,0.306786,3633.2,3632.0,3.107699]
[1733271900848,0.306786,3633.2,3632.0,0.354409]
[1733271901087,3.06774,3633.4,3632.1,2.75319]
[1733271901246,0.3155,3633.4,3631.9,0.7908]
[1733271901456,2.75233,3633.3,3631.9,3.54414]
[1733271901996,2.75232,3633.3,3632.0,2.75329]
[1733271902159,2.75241,3633.2,3632.0,2.75329]
[1733271902361,0.3155,3633.0,3631.9,0.7908]
[1733271902589,0.3155,3633.0,3631.9,3.54416]
[1733271902966,0.3155,3633.0,3631.9,0.7908]
[1733271903295,0.3155,3633.0,3631.6,3.0]
[1733271903296,0.3155,3633.0,3631.8,2.75338]
[1733271903591,0.3155,3633.0,3631.9,2.75336]
[1733271903749,0.30679,3632.9,3631.9,2.75336]
[1733271904593,0.3155,3633.0,3632.0,0.02752665]
[1733271904748,0.3155,3633.0,3632.1,0.8008]
[1733271904946,0.3155,3633.0,3632.4,2.75292]
[1733271905388,0.3155,3633.0,3632.1,0.8008]
[1733271905593,0.3155,3633.0,3632.4,2.75299]
[1733271906207,0.3155,3633.0,3632.5,2.75292]
[1733271906419,0.3155,3633.0,3632.4,0.355379]
[1733271906596,0.3155,3633.0,3631.7,0.8006]
[1733271906784,2.75262,3632.9,3631.8,2.75343]
[1733271906985,2.75271,3632.8,3631.7,0.8006]
[1733271907372,0.3155,3633.0,3631.7,3.55411]
[1733271907373,3.06805,3633.0,3631.7,3.55411]
[1733271907616,3.0866489,3632.9,3631.7,3.55411]
[1733271908224,2.7527,3632.8,3631.7,0.8006]
[1733271908513,0.60626794,3632.9,3631.7,0.8006]
[1733271908685,0.3155,3633.0,3631.8,0.02752833]
[1733271908893,0.3155,3633.0,3632.4,2.75298]
[1733271909225,0.3155,3633.0,3631.8,3.0]
[1733271909422,0.3155,3633.0,3631.9,0.955407]
[1733271909716,0.3155,3633.0,3632.2,2.75313]
[1733271909920,0.3155,3633.0,3631.9,2.75332]
[1733271910118,0.3155,3633.0,3631.7,0.8006]
[1733271910283,0.58773904,3633.0,3631.9,2.75335]
[1733271910479,0.3340219,3632.9,3632.2,2.75311]
[1733271910684,0.3155,3633.0,3632.0,0.02752834]
[1733271910685,0.27343804,3632.8,3632.0,2.75329]
[1733271911029,0.27343804,3632.9,3631.9,2.75337]
[1733271911212,0.27343804,3632.7,3631.9,2.75337]
[1733271911914,3.06804,3633.0,3631.9,2.75337]
[1733271911915,0.27343804,3632.8,3631.9,2.75337]
[1733271912114,0.27343804,3632.8,3631.7,3.55413]
[1733271912305,0.60759484,3632.7,3631.7,3.55413]
[1733271912680,0.3155,3632.6,3631.7,2.75353]
[1733271912882,0.3155,3632.5,3631.0,0.8006]
[1733271913101,0.58893804,3632.3,3631.0,0.8006]
[1733271913312,0.27343804,3632.2,3631.1,0.34618538]
[1733271913518,0.27343804,3632.2,3630.9,2.66125377]
[1733271913519,0.58949602,3632.1,3630.9,2.66125377]
[1733271913723,0.3155,3631.9,3630.5,2.66125377]
[1733271914041,2.75384,3631.3,3630.1,3.55533]
[1733271914202,0.622434,3631.2,3629.8,0.8006]
[1733271914535,0.3155,3631.2,3629.8,0.82814125]
[1733271914835,0.3155,3631.2,3630.8,2.7542]
[1733271915012,0.27399602,3631.6,3630.5,2.66125377]
[1733271915182,2.66125377,3632.5,3630.5,2.66125377]
[1733271915183,0.3155,3631.8,3630.5,2.75437]
[1733271915388,0.27399602,3631.7,3631.0,2.75402]
[1733271915616,0.27399602,3631.6,3631.0,2.75402]
[1733271915810,0.27399602,3631.7,3630.7,2.75424]
[1733271916029,0.27399602,3631.7,3630.2,5.75461]
[1733271916030,0.3155,3631.3,3630.2,2.75466]
[1733271916185,0.306932,3631.2,3630.3,2.75459]
[1733271916582,0.25702648,3631.1,3630.0,0.02754168]
[1733271916829,0.3155,3631.3,3630.0,0.02754168]
[1733271917168,0.25703153,3631.2,3630.8,2.75421]
[1733271917332,0.3155,3631.3,3630.8,2.75421]
[1733271917482,0.3155,3631.3,3630.3,2.75454]
[1733271917682,0.3155,3631.3,3629.9,3.35831413]
[1733271917883,0.25696425,3631.2,3630.1,2.75472]
[1733271918184,0.3155,3631.1,3630.2,2.7546]
[1733271918390,0.3155,3631.1,3629.9,2.75483]
[1733271918615,2.75392,3631.2,3629.5,3.0]
[1733271918616,0.3155,3630.9,3629.5,3.0]
[1733271918780,0.2053187,3630.9,3629.5,3.0]
[1733271918986,0.2053187,3630.9,3630.1,2.75471]
[1733271919236,0.2053187,3630.9,3629.9,2.75488]
[1733271919547,0.2053187,3630.9,3629.4,0.8156]
[1733271919694,0.2053187,3630.9,3630.8,0.0020042]
[1733271920033,0.2053187,3630.9,3630.8,0.05189315]
[1733271920233,0.52692194,3630.9,3630.8,0.05189315]
[1733271920401,0.2053187,3630.9,3630.8,0.04988895]
[1733271920733,3.02807602,3631.0,3629.4,2.75527]
[1733271920947,0.25660138,3630.9,3629.3,2.75532]
[1733271921117,0.25660138,3630.8,3629.3,2.75532]
[1733271921475,0.25660138,3630.9,3630.1,2.75474]
[1733271921748,0.27399602,3631.1,3629.4,0.3784777]
[1733271921749,0.25660138,3631.0,3630.2,2.75465]
[1733271921948,0.2053,3630.9,3630.2,2.75465]
[1733271922107,0.2053,3630.9,3629.8,0.02754326]
[1733271922308,0.2053,3630.9,3630.0,2.75482]
[1733271922512,0.2053,3630.9,3629.9,0.754]
[1733271922736,0.2053,3631.2,3630.0,0.0275422]
[1733271923057,0.2053,3631.2,3630.5,2.7544]
[1733271923205,0.2053,3631.2,3629.8,0.27826633]
[1733271923556,2.75415,3630.9,3629.6,2.75511]
[1733271923735,0.25660138,3630.8,3629.4,0.350932]
[1733271924047,0.2053,3630.7,3629.8,2.75492]
[1733271924245,2.75433,3630.7,3629.6,2.75512]
[1733271924409,0.46190138,3630.6,3629.4,0.350932]
[1733271924718,0.2053,3630.7,3629.6,2.75505]
[1733271925049,0.2053,3630.6,3629.6,2.75505]
[1733271925356,0.2053,3630.6,3629.0,3.46015377]
[1733271925357,0.2053,3630.6,3629.8,2.75495]
[1733271926144,0.2053,3630.6,3629.9,2.75482]
[1733271926309,0.2053,3630.6,3629.2,2.75541]
[1733271926510,0.2053,3630.6,3629.5,0.8225]
[1733271926816,0.2053,3630.6,3630.5,2.75444]
[1733271927346,0.2053,3630.6,3630.3,2.75457]
[1733271928047,0.2053,3630.6,3630.5,2.75444]
[1733271928249,0.2053,3631.3,3630.5,2.75441]
[1733271928605,0.2053,3631.3,3630.2,0.02754288]
[1733271928806,0.2053,3631.3,3631.0,2.75406]
[1733271929126,0.27340783,3631.6,3631.4,2.75375]
[1733271929344,0.27340783,3631.6,3630.4,2.75451]
[1733271929345,0.2053,3631.7,3631.6,2.7536]
[1733271929527,0.2053,3632.1,3631.7,2.75351]
[1733271929848,0.2053,3632.1,3631.6,2.7536]
[1733271930056,0.2053,3632.1,3631.7,2.75352]
[1733271930270,0.2053,3632.1,3631.0,0.7744]
[1733271930548,0.2053,3632.1,3631.7,2.75352]
[1733271930705,0.2053,3632.1,3631.1,0.02753309]
[1733271930911,0.2053,3632.1,3631.1,2.78151309]
[1733271931259,0.2053,3632.1,3632.0,2.7533]
[1733271931846,0.2053,3632.1,3631.7,2.7535]
[1733271932046,0.2053,3632.1,3631.9,2.75336]
[1733271932289,0.2053,3632.1,3632.0,2.7533]
[1733271932492,0.2053,3632.5,3631.8,2.75341]
[1733271932793,0.2053,3632.5,3632.1,2.75322]
[1733271933102,0.2053,3632.5,3631.3,0.13961167]
[1733271933250,2.75308,3632.3,3630.7,0.8292]
[1733271933450,2.75308,3632.3,3630.3,5.90026123]
[1733271933451,2.75322,3632.1,3630.4,3.0]
[1733271933690,3.14569123,3632.5,3630.3,3.52163]
[1733271933691,0.2053,3632.0,3630.6,2.75436]
[1733271933898,0.2053,3632.0,3631.1,2.75397]
[1733271934183,0.2053,3632.0,3631.2,2.75383]
[1733271934384,0.2053,3632.0,3631.1,2.75397]
[1733271934788,0.2053,3632.0,3631.2,2.75388]
[1733271934948,0.2053,3632.0,3630.7,2.78176689]
[1733271935150,0.2053,3632.0,3631.0,2.75405]
[1733271935385,0.2053,3632.0,3631.1,2.75397]
[1733271936386,0.2053,3632.0,3630.7,0.31339299]
[1733271936572,0.2053,3632.0,3630.7,2.78180689]
[1733271936886,0.2053,3632.0,3631.0,2.75399]
[1733271937247,2.75331,3632.0,3630.8,2.75418]
[1733271937600,0.2053,3631.9,3630.5,0.0275375]
[1733271937761,0.2053,3631.9,3630.7,2.75423]
[1733271937961,0.2053,3631.9,3630.9,2.75409]
[1733271938293,2.75347,3631.8,3630.7,2.75427]
[1733271938592,3.41942674,3632.5,3630.1,2.76614769]
[1733271938593,0.2053,3631.6,3630.6,2.75436]
[1733271939159,0.2053,3631.6,3630.2,3.0]
[1733271939354,0.2053,3631.6,3631.2,2.75389]
[1733271939583,0.2053,3631.6,3631.2,0.275389]
[1733271939749,0.2053,3631.6,3630.9,2.75406]
[1733271939750,0.2053,3631.6,3630.4,2.75446]
[1733271940390,0.2053,3631.6,3630.8,2.75418]
[1733271941078,0.2053,3631.6,3630.7,2.75426]
[1733271941286,0.2053,3631.6,3630.3,2.75459]
[1733271941481,0.2053,3631.6,3631.1,2.75398]
[1733271942292,0.2053,3631.6,3630.4,0.35742677]
[1733271942600,0.2053,3631.6,3630.5,2.75444]
[1733271942892,0.2053,3631.6,3630.6,2.75435]
[1733271943265,0.2053,3631.6,3629.9,3.55795]
[1733271943529,2.95905,3631.5,3630.2,2.75466]
[1733271943649,0.2053,3631.3,3629.7,3.67887738]
[1733271943853,0.2053,3631.3,3630.4,2.75448]
[1733271945194,0.2053,3631.3,3630.5,2.75443]
[1733271945415,0.2053,3631.3,3630.6,0.02754223]
[1733271945566,0.2053,3631.3,3629.9,3.14569123]
[1733271945567,0.2053,3631.3,3630.5,2.75444]
[1733271945904,0.2053,3631.3,3631.0,2.75405]
[1733271946758,0.2053,3631.3,3630.6,0.63277]
[1733271946963,0.2053,3631.9,3630.5,0.02753761]
[1733271947365,0.2053,3631.9,3630.5,0.02753527]
[1733271947520,0.2053,3631.9,3631.5,2.75367]
[1733271948259,0.2053,3631.9,3631.6,2.75359]
[1733271948822,0.2053,3631.9,3631.4,2.75374]
[1733271950238,0.2053,3631.9,3631.5,2.7536]
[1733271950434,0.27390897,3632.2,3631.6,0.02753526]
[1733271950435,0.2053,3632.2,3631.6,0.02753526]
[1733271950634,0.2053,3632.2,3631.2,2.75391]
[1733271950867,0.2053,3632.2,3631.3,0.66619012]
[1733271951080,0.2053,3632.6,3632.4,2.75298]
[1733271951537,0.2053,3632.6,3632.5,2.75292]
[1733271952176,0.2053,3633.0,3631.7,0.7623]
[1733271952379,0.2053,3633.0,3631.9,2.75332]
[1733271952553,0.2053,3633.0,3632.3,2.75307]
[1733271953536,0.2053,3633.0,3631.7,0.7623]
[1733271953740,0.2053,3633.0,3632.5,2.75288]
[1733271953943,0.2053,3633.0,3632.6,2.75282]
[1733271954138,0.2053,3633.0,3632.8,2.75268]
[1733271954565,0.2053,3633.0,3632.9,2.75262]
[1733271954872,4.38201497,3633.9,3633.2,2.75239]
[1733271954873,0.2053,3633.5,3633.2,2.75239]
[1733271955077,0.27405917,3634.0,3632.5,3.41851163]
[1733271955276,0.66742719,3634.0,3633.2,2.75235]
[1733271955435,0.66742719,3634.0,3632.8,2.75267]
[1733271955638,0.47935917,3634.1,3633.2,2.75239]
[1733271955878,0.47935917,3634.1,3632.9,2.75262]
[1733271956073,0.2053,3634.1,3632.9,2.75262]
[1733271956380,0.2053,3634.1,3633.4,2.75223]
[1733271956539,0.36790947,3634.1,3633.4,2.75223]
[1733271956738,0.2053,3634.1,3633.5,2.7521]
[1733271957577,0.47935917,3634.5,3633.9,2.75186]
[1733271957784,0.2053,3634.5,3633.4,2.75219]
[1733271957941,0.27405917,3634.7,3633.4,2.75219]
[1733271957942,0.27405917,3634.9,3634.6,2.75133]
[1733271958285,0.2053,3635.8,3635.3,2.75079]
[1733271958480,0.2053,3635.8,3634.8,2.75118]
[1733271958641,0.2053,3635.8,3634.9,2.7511]
[1733271958844,0.2053,3635.8,3635.0,0.02750513]
[1733271959188,0.2053,3635.8,3635.4,2.75068]
[1733271959350,0.2053,3635.8,3635.2,2.7508]
[1733271959695,0.2053,3635.8,3634.9,2.7511]
[1733271959974,0.2053,3635.8,3635.4,2.75072]
[1733271960280,0.2053,3635.8,3635.0,2.75099]
[1733271960580,0.2053,3635.8,3634.8,0.65531888]
[1733271960773,0.2053,3635.8,3635.2,2.75086]
[1733271961490,0.2053,3635.8,3634.8,0.65531888]
[1733271961672,0.2053,3635.8,3634.9,0.41811389]
[1733271961858,0.2053,3635.8,3634.9,2.75109]
[1733271963773,0.2032958,3635.8,3634.9,2.75109]
[1733271963975,2.74986,3636.6,3635.4,0.01147769]
[1733271964286,2.74969,3636.8,3635.6,2.75056]
[1733271964444,3.33859399,3636.8,3635.6,2.75056]
[1733271964954,2.74978,3636.7,3635.4,0.01147769]
[1733271965280,0.64782239,3636.6,3635.4,0.01147769]
[1733271965492,2.75005,3636.3,3635.4,0.01147769]
[1733271965693,2.75015,3636.2,3635.4,0.01147769]
[1733271966043,2.74974,3636.7,3635.4,0.01147769]
[1733271966283,2.74996,3636.5,3635.4,0.01147769]
[1733271966688,2.74967,3636.8,3635.4,0.01147769]
[1733271966856,2.75009,3636.3,3635.4,0.01147769]
[1733271967057,3.13953991,3636.9,3635.4,0.01147769]
[1733271967058,0.1534,3636.2,3635.4,0.01147769]
[1733271967561,0.1534,3636.2,3635.5,2.75065]
[1733271967869,0.1534,3636.2,3635.6,0.35464277]
[1733271968659,0.1534,3636.2,3635.6,2.75057]
[1733271969273,0.1534,3636.2,3635.4,3.54649769]
[1733271969480,0.1534,3636.2,3635.4,0.79577769]
[1733271969837,0.1534,3636.2,3635.5,2.75064]
[1733271970148,0.1534,3636.2,3635.4,0.79577769]
[1733271970486,0.1534,3636.2,3635.5,2.75063]
[1733271970690,0.1534,3636.2,3635.6,0.35464077]
[1733271971177,0.1534,3636.2,3635.4,3.54648769]